bitfinex-derivatives/quotes_BTCF0:USTF0_20251002
["timestamp","ask_amount","ask_price","bid_price","bid_amount"]
[1759419307672,4e-05,119440.0,119430.0,0.80286662]
[1759419307877,4e-05,119440.0,119430.0,1.2397405]
[1759419307878,0.34982612,119440.0,119430.0,1.2397405]
[1759419308076,0.79429952,119440.0,119430.0,0.02313]
[1759419308274,0.1183405,119430.0,119420.0,0.38393]
[1759419308475,0.1183475,119420.0,119410.0,0.02313]
[1759419308675,0.1183545,119410.0,119400.0,0.4676268]
[1759419308879,0.76860674,119410.0,119400.0,0.21093764]
[1759419309280,0.35978612,119410.0,119400.0,0.21093764]
[1759419309477,0.03466,119410.0,119400.0,0.64639147]
[1759419309675,0.34678612,119410.0,119400.0,0.88019675]
[1759419309876,0.03466,119420.0,119410.0,0.1068245]
[1759419310076,0.35978612,119420.0,119410.0,0.86738756]
[1759419310578,0.35978612,119420.0,119410.0,1.62934756]
[1759419311181,0.35978612,119420.0,119410.0,1.64213756]
[1759419311481,0.35978612,119420.0,119410.0,1.62934756]
[1759419312076,0.35978612,119420.0,119410.0,1.30722144]
[1759419312280,0.03466,119420.0,119410.0,1.31022144]
[1759419313786,0.02166,119420.0,119410.0,1.32301144]
[1759419314285,0.02166,119420.0,119410.0,1.2483745]
[1759419314784,0.52484342,119430.0,119420.0,0.1068175]
[1759419317881,0.52484342,119430.0,119420.0,0.0836875]
[1759419318182,0.03466,119420.0,119410.0,0.4676197]
[1759419318370,0.02166,119420.0,119410.0,0.4804097]
[1759419319284,0.02166,119420.0,119410.0,0.4834097]
[1759419319487,0.02166,119420.0,119410.0,0.4864097]
[1759419319984,0.1183475,119420.0,119410.0,0.4736197]
[1759419321081,0.02166,119420.0,119410.0,0.4864097]
[1759419321286,0.42815842,119420.0,119410.0,0.4864097]
[1759419321486,0.51184592,119420.0,119410.0,0.4864097]
[1759419321688,0.52484592,119420.0,119410.0,0.4864097]
[1759419321884,0.52484592,119420.0,119410.0,0.4736197]
[1759419322188,0.01304,119440.0,119420.0,0.1175275]
[1759419322387,0.1053734,119440.0,119430.0,0.4804004]
[1759419322987,0.44119842,119440.0,119430.0,0.4676104]
[1759419323582,0.0347,119440.0,119430.0,0.4676104]
[1759419323784,0.52487172,119440.0,119430.0,0.4676103]
[1759419324182,0.52787172,119440.0,119430.0,0.4676103]
[1759419324583,0.1243733,119440.0,119430.0,0.4676103]
[1759419325079,0.1213733,119440.0,119430.0,0.4676103]
[1759419325283,0.1243733,119440.0,119430.0,0.4676103]
[1759419328201,0.53087172,119440.0,119430.0,0.4676103]
[1759419328501,0.1243733,119440.0,119430.0,0.4676103]
[1759419330100,0.0407,119440.0,119430.0,0.4676103]
[1759419330304,0.00604,119440.0,119430.0,1.64769872]
[1759419330597,0.00604,119440.0,119430.0,1.2412003]
[1759419330802,0.02736,119440.0,119430.0,0.4804003]
[1759419330999,0.04091,119440.0,119430.0,1.2294503]
[1759419331492,0.03491,119440.0,119430.0,1.2324503]
[1759419331801,0.03491,119440.0,119430.0,1.2354503]
[1759419332395,0.03491,119440.0,119430.0,0.4736103]
[1759419332597,0.03491,119440.0,119430.0,1.2354503]
[1759419333702,0.03491,119440.0,119430.0,1.2354103]
[1759419333904,0.03491,119440.0,119430.0,0.4736103]
[1759419334403,0.36000631,119440.0,119430.0,1.56050661]
[1759419335001,0.36000631,119440.0,119430.0,0.79870661]
[1759419335194,0.76877612,119440.0,119430.0,0.38993]
[1759419335497,1.16877612,119440.0,119430.0,0.006]
[1759419335699,2.61643243,119440.0,119430.0,0.006]
[1759419336502,0.8793835,119440.0,119430.0,0.006]
[1759419336701,2.29133612,119440.0,119430.0,0.006]
[1759419336905,0.1185505,119430.0,119420.0,0.1050675]
[1759419337305,0.44364681,119430.0,119420.0,0.1050675]
[1759419337701,1.20540681,119430.0,119420.0,0.1050675]
[1759419338208,0.35996631,119430.0,119420.0,0.44895381]
[1759419338405,0.35996631,119430.0,119420.0,0.1110675]
[1759419338595,0.44364681,119430.0,119420.0,0.1110675]
[1759419339008,0.1185505,119430.0,119420.0,0.1110675]
[1759419339309,0.44364681,119430.0,119420.0,0.1110675]
[1759419340405,0.44375311,119430.0,119420.0,0.1110675]
[1759419341604,0.44375311,119430.0,119420.0,0.0896875]
[1759419341801,0.84375311,119430.0,119420.0,0.0896875]
[1759419342002,0.84375311,119430.0,119420.0,0.1110675]
[1759419342402,0.44375311,119430.0,119420.0,0.1110675]
[1759419342911,0.44375311,119430.0,119420.0,0.0896875]
[1759419344904,1.12975572,119430.0,119420.0,0.006]
[1759419345210,1.52975572,119430.0,119420.0,0.006]
[1759419345806,1.52975572,119430.0,119420.0,0.02738]
[1759419345807,0.44375311,119430.0,119420.0,0.02738]
[1759419346006,0.44375311,119430.0,119420.0,0.1110666]
[1759419346311,1.20547311,119430.0,119420.0,0.1050666]
[1759419346710,0.44375311,119430.0,119420.0,0.1050666]
[1759419346911,0.79659,119430.0,119420.0,0.43026921]
[1759419347126,0.03487,119430.0,119420.0,0.43026921]
[1759419347410,0.03487,119430.0,119420.0,0.80477921]
[1759419347610,0.03487,119430.0,119420.0,0.4825766]
[1759419347812,0.1185504,119430.0,119420.0,0.4825766]
[1759419348212,1.12975562,119430.0,119420.0,0.0896866]
[1759419348513,0.80455301,119430.0,119420.0,0.0896866]
[1759419349012,0.78304,119430.0,119420.0,0.4846566]
[1759419349210,0.02132,119430.0,119420.0,0.4906566]
[1759419349914,0.02132,119430.0,119420.0,0.4786566]
[1759419350110,0.0972636,119440.0,119420.0,0.80685921]
[1759419350310,0.03491,119440.0,119430.0,0.1050603]
[1759419350815,0.44378591,119440.0,119430.0,0.1050603]
[1759419352711,0.36011261,119440.0,119430.0,0.1050603]
[1759419353017,0.02136,119440.0,119430.0,0.1178503]
[1759419353318,0.02136,119440.0,119430.0,0.1208503]
[1759419353608,0.1185836,119440.0,119430.0,0.1238503]
[1759419354110,0.03491,119440.0,119430.0,0.43626291]
[1759419354316,4e-05,119440.0,119430.0,0.8846503]
[1759419354518,4e-05,119440.0,119430.0,1.20985291]
[1759419356416,4e-05,119440.0,119430.0,1.97149291]
[1759419356612,4e-05,119440.0,119430.0,1.53505552]
[1759419356820,4e-05,119440.0,119430.0,2.29669552]
[1759419357311,4e-05,119440.0,119430.0,1.97149291]
[1759419357507,4e-05,119440.0,119430.0,1.20985291]
[1759419357912,4e-05,119440.0,119430.0,1.97145291]
[1759419359722,4e-05,119440.0,119430.0,1.20985291]
[1759419359914,4e-05,119440.0,119430.0,1.97145291]
[1759419360914,4e-05,119440.0,119430.0,1.97141291]
[1759419361316,4e-05,119440.0,119430.0,1.20985291]
[1759419361518,4e-05,119440.0,119430.0,1.97141291]
[1759419361720,4e-05,119440.0,119430.0,1.20985291]
[1759419361920,4e-05,119440.0,119430.0,1.97141291]
[1759419362316,4e-05,119440.0,119430.0,1.20985291]
[1759419362518,4e-05,119440.0,119430.0,0.95085193]
[1759419362820,4e-05,119440.0,119430.0,2.03761454]
[1759419364424,4e-05,119440.0,119430.0,1.27605454]
[1759419365019,4e-05,119440.0,119430.0,2.03757454]
[1759419365221,4e-05,119440.0,119430.0,1.27605454]
[1759419365419,4e-05,119440.0,119430.0,2.03757454]
[1759419368821,4e-05,119440.0,119430.0,1.71237193]
[1759419369028,4e-05,119440.0,119430.0,1.27605454]
[1759419369527,4e-05,119440.0,119430.0,2.03749454]
[1759419371622,4e-05,119440.0,119430.0,1.71229193]
[1759419371823,4e-05,119440.0,119430.0,2.03749454]
[1759419373723,4e-05,119440.0,119430.0,2.36269715]
[1759419373924,0.03512,119470.0,119460.0,0.1058295]
[1759419374222,0.02157,119470.0,119460.0,1.56602211]
[1759419374431,0.44386531,119470.0,119460.0,1.2280295]
[1759419374932,0.84386531,119470.0,119460.0,1.2280295]
[1759419375131,0.85186531,119470.0,119460.0,0.4666295]
[1759419375818,0.84386531,119470.0,119460.0,0.4666295]
[1759419376024,0.84586531,119470.0,119460.0,0.4666295]
[1759419376226,0.85486531,119470.0,119460.0,0.4666295]
[1759419376926,0.84690531,119470.0,119460.0,0.4666295]
[1759419378022,0.84690531,119470.0,119460.0,0.1058295]
[1759419380626,1.17210792,119470.0,119460.0,0.0836595]
[1759419380929,0.84690531,119470.0,119460.0,0.0836595]
[1759419382027,0.01344,119460.0,119450.0,0.4666308]
[1759419382233,0.44387241,119460.0,119450.0,0.4666308]
[1759419383123,0.1186698,119460.0,119450.0,0.4666308]
[1759419383327,0.44387241,119460.0,119450.0,0.4666308]
[1759419383529,0.36021261,119460.0,119450.0,0.4666308]
[1759419383839,0.44387191,119460.0,119450.0,0.4666308]
[1759419385127,0.45231785,119460.0,119450.0,0.4666308]
[1759419385331,0.45231785,119460.0,119450.0,0.3608]
[1759419385531,0.45231785,119460.0,119440.0,0.1068039]
[1759419385532,0.1173769,119450.0,119440.0,0.1068039]
[1759419385728,0.4325364,119450.0,119440.0,0.1068039]
[1759419386039,0.4325364,119450.0,119440.0,0.02313]
[1759419386222,0.1173834,119440.0,119430.0,0.4676044]
[1759419386428,0.44258601,119440.0,119430.0,0.54224134]
[1759419386734,0.44258601,119440.0,119430.0,0.4676044]
[1759419387035,0.1173903,119430.0,119420.0,0.09776694]
[1759419387336,0.44259291,119430.0,119420.0,0.1068173]
[1759419387529,0.1173979,119420.0,119410.0,0.54225764]
[1759419387829,0.44260051,119420.0,119410.0,0.4676207]
[1759419388030,0.44260051,119420.0,119410.0,0.54206558]
[1759419388631,0.84260051,119420.0,119410.0,0.07444488]
[1759419388835,1.20340051,119420.0,119410.0,0.07444488]
[1759419389134,1.20340051,119420.0,119410.0,0.07744488]
[1759419389338,1.20340051,119420.0,119410.0,0.08044488]
[1759419390136,1.20340051,119420.0,119410.0,0.006]
[1759419390436,0.1174046,119410.0,119400.0,0.18127078]
[1759419390735,0.44260721,119410.0,119400.0,0.18127078]
[1759419391037,0.44260721,119410.0,119400.0,0.1068259]
[1759419391226,1.60384721,119410.0,119400.0,0.07444488]
[1759419391628,1.60384721,119410.0,119400.0,0.15814648]
[1759419391828,1.60384721,119410.0,119400.0,0.16114648]
[1759419392030,1.96464721,119410.0,119400.0,0.16414648]
[1759419393138,1.96464721,119410.0,119400.0,0.0897016]
[1759419394148,1.96464721,119410.0,119400.0,0.1128316]
[1759419394149,1.20340721,119410.0,119400.0,0.1128316]
[1759419394340,1.96468721,119410.0,119400.0,0.1128316]
[1759419394534,1.20388721,119410.0,119400.0,0.1128316]
[1759419395738,1.19384047,119410.0,119400.0,0.1128316]
[1759419397439,1.19384047,119410.0,119400.0,0.0897016]
[1759419397835,1.19384047,119410.0,119400.0,0.1128316]
[1759419398442,1.19384047,119410.0,119400.0,0.0897016]
[1759419398644,1.19384047,119410.0,119400.0,0.0837016]
[1759419399940,0.1174117,119400.0,119390.0,0.43524488]
[1759419400141,0.1174187,119390.0,119380.0,0.64619712]
[1759419400444,1.19033565,119390.0,119380.0,0.51895628]
[1759419400941,1.19033565,119390.0,119380.0,0.15815628]
[1759419401142,1.19033565,119390.0,119380.0,0.16415628]
[1759419401342,1.19033565,119390.0,119380.0,0.17015628]
[1759419401642,1.19033565,119390.0,119380.0,0.0957114]
[1759419402246,1.51604708,119390.0,119380.0,0.0957114]
[1759419402446,1.52453278,119390.0,119380.0,0.1188414]
[1759419402642,1.52453278,119390.0,119380.0,0.012]
[1759419402945,1.88533278,119390.0,119380.0,0.012]
[1759419403349,0.1174324,119370.0,119360.0,0.083725]
[1759419403538,0.1174324,119370.0,119350.0,0.44460154]
[1759419403539,0.1174394,119360.0,119350.0,0.44460154]
[1759419403743,1.12915344,119360.0,119350.0,6.854e-05]
[1759419404046,1.89051344,119360.0,119350.0,6.854e-05]
[1759419404647,1.89051344,119360.0,119350.0,0.01506854]
[1759419404845,1.89051344,119360.0,119350.0,0.02706854]
[1759419405045,2.21597046,119360.0,119350.0,0.02706854]
[1759419405245,1.89051344,119360.0,119350.0,0.02706854]
[1759419405549,2.61597046,119360.0,119350.0,0.02706854]
[1759419405739,1.85461046,119360.0,119350.0,0.02706854]
[1759419405941,2.61601046,119360.0,119350.0,0.02706854]
[1759419406744,2.61601046,119360.0,119350.0,6.854e-05]
[1759419406745,1.85461046,119360.0,119350.0,6.854e-05]
[1759419406954,1.14115344,119360.0,119350.0,6.854e-05]
[1759419407144,1.90259344,119360.0,119350.0,6.854e-05]
[1759419407449,1.2516794,119360.0,119350.0,6.854e-05]
[1759419407647,1.12915344,119360.0,119350.0,6.854e-05]
[1759419407845,1.13815344,119360.0,119350.0,0.02319854]
[1759419408149,0.69362404,119360.0,119350.0,0.10693464]
[1759419408452,0.8878791,119360.0,119350.0,0.48052464]
[1759419408945,0.04271,119360.0,119350.0,0.48052464]
[1759419409341,0.03,119360.0,119350.0,0.48052464]
[1759419409547,0.009,119360.0,119350.0,0.88052464]
[1759419409849,0.009,119360.0,119350.0,1.28745605]
[1759419410345,0.009,119360.0,119350.0,2.13275972]
[1759419410650,0.74011455,119390.0,119380.0,0.106845]
[1759419411350,0.59187455,119390.0,119380.0,0.106845]
[1759419411547,1.35339455,119390.0,119380.0,0.106845]
[1759419411940,1.37939455,119390.0,119380.0,0.106845]
[1759419412151,1.37939455,119390.0,119370.0,0.4445167]
[1759419412346,0.03371,119380.0,119370.0,0.4676467]
[1759419412545,0.021,119380.0,119370.0,0.4804367]
[1759419412846,0.61787455,119390.0,119380.0,0.1068456]
[1759419413046,0.88875284,119390.0,119380.0,0.1196356]
[1759419413247,0.97246144,119390.0,119380.0,0.1068456]
[1759419413451,1.36439285,119390.0,119380.0,0.02313]
[1759419413647,1.72519285,119390.0,119380.0,0.02313]
[1759419413857,1.72519285,119390.0,119370.0,0.4676465]
[1759419413858,0.1174256,119380.0,119370.0,0.4676465]
[1759419414054,0.53235701,119380.0,119370.0,0.1068465]
[1759419414258,0.1174326,119370.0,119360.0,0.4676558]
[1759419414446,0.52436401,119370.0,119360.0,0.4676558]
[1759419416149,0.44064141,119370.0,119360.0,0.4676558]
[1759419416551,0.52436401,119370.0,119360.0,0.4676558]
[1759419417053,0.52936401,119370.0,119360.0,0.4676558]
[1759419417754,0.026,119370.0,119360.0,0.4783658]
[1759419417945,0.03914,119370.0,119360.0,0.4676558]
[1759419418658,0.026,119370.0,119360.0,0.4783658]
[1759419419054,0.03914,119370.0,119360.0,0.4676558]
[1759419419356,0.005,119370.0,119360.0,0.4783658]
[1759419419753,0.02666,119370.0,119360.0,0.4783658]
[1759419420354,0.005,119370.0,119360.0,0.4783658]
[1759419420952,0.02666,119370.0,119360.0,0.4783658]
[1759419421152,0.0398,119370.0,119360.0,0.4783658]
[1759419421362,0.44673141,119370.0,119360.0,0.4676558]
[1759419421747,0.53045381,119370.0,119360.0,0.4676558]
[1759419421943,0.53045381,119370.0,119360.0,0.1068558]
[1759419423156,0.53049381,119370.0,119360.0,0.1068558]
[1759419423860,0.1235624,119370.0,119360.0,0.1068558]
[1759419424154,0.03984,119370.0,119360.0,0.1068558]
[1759419424462,0.1235626,119370.0,119360.0,0.1068558]
[1759419425551,0.53049401,119370.0,119360.0,0.1068558]
[1759419426161,0.1235626,119370.0,119360.0,0.1068558]
[1759419426960,0.53049401,119370.0,119360.0,0.1068558]
[1759419428262,0.53049401,119370.0,119360.0,0.0837258]
[1759419428757,0.1235626,119370.0,119360.0,0.0837258]
[1759419428965,0.53049401,119370.0,119360.0,0.0837258]
[1759419429164,0.53049401,119370.0,119360.0,0.1054658]
[1759419430366,0.44911178,119370.0,119360.0,0.1054658]
[1759419430559,0.77466096,119370.0,119360.0,0.1054658]
[1759419431159,0.1235626,119370.0,119360.0,0.1054658]
[1759419431361,0.77466096,119370.0,119360.0,0.1054658]
[1759419431961,0.1185296,119360.0,119350.0,0.08379904]
[1759419432160,2.60740608,119360.0,119350.0,6.854e-05]
[1759419432569,1.63075854,119360.0,119350.0,6.854e-05]
[1759419432867,2.2818569,119360.0,119350.0,0.08380514]
[1759419433062,2.2828569,119360.0,119350.0,0.08380514]
[1759419433263,2.60840608,119360.0,119350.0,6.854e-05]
[1759419434165,1.63175854,119360.0,119350.0,6.854e-05]
[1759419434468,2.60840608,119360.0,119350.0,6.854e-05]
[1759419434957,0.0348,119320.0,119310.0,0.54074498]
[1759419435161,0.34673706,119320.0,119310.0,0.4663001]
[1759419435362,0.75604404,119320.0,119310.0,0.4663001]
[1759419435562,0.75604404,119320.0,119310.0,0.8663001]
[1759419435766,1.44239322,119320.0,119290.0,0.53180838]
[1759419436064,0.1185773,119290.0,119280.0,0.07444488]
[1759419436369,0.1185914,119270.0,119260.0,0.1786885]
[1759419436561,1.83881188,119270.0,119250.0,6.864e-05]
[1759419436768,1.09524594,119260.0,119250.0,6.864e-05]
[1759419436969,0.1185984,119260.0,119250.0,0.10417948]
[1759419437162,1.09524594,119260.0,119250.0,0.17869579]
[1759419437464,1.90143512,119260.0,119250.0,6.864e-05]
[1759419437669,1.1035443,119260.0,119250.0,0.02180864]
[1759419437859,0.84993907,119260.0,119250.0,0.47932384]
[1759419438056,0.73839743,119260.0,119250.0,0.48732384]
[1759419438259,0.08729907,119260.0,119250.0,0.96177741]
[1759419438461,7.701e-05,119270.0,119260.0,0.1184483]
[1759419438667,0.43967701,119270.0,119260.0,0.4792483]
[1759419438867,7.701e-05,119270.0,119260.0,0.88685779]
[1759419439068,7.701e-05,119270.0,119260.0,1.29524178]
[1759419439264,7.701e-05,119270.0,119260.0,1.04586016]
[1759419439770,0.1054298,119300.0,119290.0,0.03465]
[1759419439971,0.02166,119300.0,119290.0,0.4792268]
[1759419440165,0.8685441,119310.0,119300.0,0.01291]
[1759419440469,0.8685441,119310.0,119300.0,0.03465]
[1759419440771,0.8685441,119310.0,119300.0,0.02174]
[1759419440772,0.8816841,119310.0,119300.0,0.02174]
[1759419440964,0.0837698,119300.0,119290.0,0.3608]
[1759419441163,0.0348,119290.0,119280.0,0.4663229]
[1759419441363,0.02166,119290.0,119280.0,0.4792329]
[1759419441964,0.50551929,119300.0,119280.0,0.4792329]
[1759419442173,0.8612298,119300.0,119280.0,0.4792329]
[1759419442473,0.52618699,119290.0,119280.0,0.4663245]
[1759419442671,0.1185775,119290.0,119280.0,0.4663245]
[1759419442967,0.02166,119290.0,119280.0,0.8872345]
[1759419443571,0.1054375,119290.0,119280.0,0.44265]
[1759419444676,0.1054375,119290.0,119280.0,0.5264338]
[1759419447471,0.51304699,119290.0,119280.0,0.1135238]
[1759419447676,0.52650699,119290.0,119280.0,0.02974]
[1759419448481,0.52650699,119290.0,119280.0,0.1135242]
[1759419448677,1.29002699,119290.0,119280.0,0.1135242]
[1759419449677,1.27644699,119290.0,119280.0,0.4875442]
[1759419449878,0.51304699,119290.0,119280.0,0.4875442]
[1759419450080,0.8688375,119290.0,119280.0,0.4875442]
[1759419450682,0.76336,119290.0,119280.0,0.4875442]
[1759419450982,0.1197076,119290.0,119280.0,0.4875446]
[1759419451181,0.52731709,119290.0,119280.0,0.4875446]
[1759419451378,0.1197076,119290.0,119280.0,0.4875446]
[1759419451583,0.1062476,119290.0,119280.0,0.4875446]
[1759419452984,0.52731709,119290.0,119280.0,0.39054]
[1759419453379,0.52731709,119290.0,119280.0,0.4743245]
[1759419453585,0.1197076,119290.0,119280.0,0.4875445]
[1759419453781,0.52731709,119290.0,119280.0,0.4875445]
[1759419453986,0.52731709,119290.0,119280.0,0.4743245]
[1759419453987,1.29087709,119290.0,119280.0,0.4743245]
[1759419454992,0.52731709,119290.0,119280.0,0.4743245]
[1759419455288,1.29079709,119290.0,119280.0,0.02974]
[1759419455483,2.05159709,119290.0,119280.0,0.008]
[1759419455689,2.05179709,119290.0,119280.0,0.008]
[1759419455881,2.45940658,119290.0,119280.0,0.00231429]
[1759419456080,0.1197287,119260.0,119250.0,0.02329864]
[1759419456284,0.1197287,119260.0,119250.0,0.10710434]
[1759419456285,1.29105819,119260.0,119250.0,0.10710434]
[1759419456791,1.29943449,119260.0,119250.0,0.02329864]
[1759419457178,1.29947449,119260.0,119250.0,0.10710444]
[1759419457685,1.66031449,119260.0,119250.0,0.13710444]
[1759419458080,2.06031449,119260.0,119250.0,0.03006864]
[1759419459382,2.06027449,119260.0,119250.0,0.03006864]
[1759419459579,1.29651449,119260.0,119250.0,6.864e-05]
[1759419459780,1.29651449,119260.0,119250.0,0.00106864]
[1759419460391,0.488905,119260.0,119250.0,6.864e-05]
[1759419460586,1.66051449,119260.0,119250.0,0.02729864]
[1759419460988,1.66063449,119260.0,119250.0,0.11110424]
[1759419461486,0.1197287,119260.0,119250.0,0.12432424]
[1759419461692,0.8837687,119260.0,119250.0,0.12432424]
[1759419461888,0.8837687,119260.0,119250.0,0.11110424]
[1759419461889,1.29137819,119260.0,119250.0,0.11110424]
[1759419462089,0.52733819,119260.0,119250.0,0.11110424]
[1759419462289,0.47407697,119260.0,119250.0,0.11110424]
[1759419462484,1.24660205,119260.0,119250.0,0.11110424]
[1759419462686,1.24660205,119260.0,119250.0,0.02729864]
[1759419463185,1.60740205,119260.0,119250.0,0.00406864]
[1759419463783,0.84336205,119260.0,119250.0,0.08787434]
[1759419464090,1.60732205,119260.0,119250.0,0.08787434]
[1759419464284,0.02247,119260.0,119250.0,0.12432434]
[1759419464480,0.78647,119260.0,119250.0,0.12432434]
[1759419464792,0.78651,119260.0,119250.0,0.12432434]
[1759419465490,0.8837687,119260.0,119250.0,0.12432434]
[1759419465680,1.23811697,119260.0,119250.0,0.11110434]
[1759419466094,0.47407697,119260.0,119250.0,0.11110434]
[1759419466288,0.8837687,119260.0,119250.0,0.11110434]
[1759419466488,0.79997,119260.0,119250.0,0.11110434]
[1759419466689,1.23823697,119260.0,119250.0,0.11110434]
[1759419467090,0.39027827,119260.0,119250.0,0.11110434]
[1759419467290,0.02247,119260.0,119250.0,0.12432434]
[1759419467494,0.02247,119260.0,119250.0,0.48512434]
[1759419467790,0.63515,119260.0,119250.0,0.48512434]
[1759419467996,0.7189482,119260.0,119250.0,0.48512434]
[1759419468292,0.02247,119260.0,119250.0,0.48512434]
[1759419468494,0.78659,119260.0,119250.0,0.48512434]
[1759419468693,0.02247,119260.0,119250.0,0.48512434]
[1759419469093,0.78655,119260.0,119250.0,0.48512434]
[1759419469494,0.8838086,119260.0,119250.0,0.48512434]
[1759419469692,0.8838086,119260.0,119250.0,0.11110434]
[1759419469899,0.8838086,119260.0,119250.0,0.02729864]
[1759419469900,1.23815687,119260.0,119250.0,0.02729864]
[1759419470194,1.23815687,119260.0,119250.0,0.08787424]
[1759419471386,1.23815687,119260.0,119250.0,0.11110424]
[1759419471592,0.47407687,119260.0,119250.0,0.11110424]
[1759419471991,0.47407687,119260.0,119250.0,0.12432424]
[1759419472199,0.02247,119260.0,119250.0,0.48512424]
[1759419472496,0.03593,119280.0,119270.0,0.0837912]
[1759419472692,0.02247,119280.0,119270.0,0.4810412]
[1759419472889,0.78671,119280.0,119270.0,0.8810412]
[1759419473096,0.8704942,119280.0,119270.0,0.8810412]
[1759419473292,0.8839542,119280.0,119270.0,0.8678212]
[1759419473997,0.8859542,119280.0,119270.0,0.8678212]
[1759419474298,0.8879542,119280.0,119270.0,0.8678212]
[1759419474494,1.24230247,119280.0,119270.0,0.8678212]
[1759419474896,0.02647,119280.0,119270.0,0.8810412]
[1759419475096,0.79071,119280.0,119270.0,0.8810412]
[1759419475298,0.02647,119280.0,119270.0,0.8810412]
[1759419475494,0.79067,119280.0,119270.0,0.8810412]
[1759419475994,1.24238297,119280.0,119270.0,0.0837912]
[1759419476696,1.24238297,119280.0,119270.0,0.1070612]
[1759419476998,1.26495195,119280.0,119270.0,0.1070612]
[1759419477202,1.26485195,119280.0,119270.0,0.1070612]
[1759419477402,1.26485195,119280.0,119270.0,0.0837912]
[1759419477692,0.91050368,119280.0,119270.0,0.0837912]
[1759419477999,1.26485195,119280.0,119270.0,0.0837912]
[1759419478306,0.004,119280.0,119270.0,1.31914933]
[1759419478999,0.004,119280.0,119270.0,2.08358933]
[1759419479200,0.004,119280.0,119270.0,1.72924106]
[1759419479504,0.004,119280.0,119270.0,2.08358933]
[1759419479691,0.004,119280.0,119270.0,0.96480106]
[1759419479898,0.04025,119280.0,119270.0,0.56480146]
[1759419480100,0.004,119280.0,119270.0,0.8809616]
[1759419480700,0.02667,119280.0,119270.0,0.4809616]
[1759419480905,0.04025,119280.0,119270.0,0.4809616]
[1759419481097,0.1240348,119280.0,119270.0,0.4809616]
[1759419481497,0.004,119280.0,119270.0,0.4809616]
[1759419481696,0.004,119280.0,119270.0,2.00038987]
[1759419482101,0.004,119280.0,119270.0,1.6460416]
[1759419483405,0.02667,119280.0,119270.0,0.8809616]
[1759419483706,0.02667,119280.0,119270.0,1.2461216]
[1759419483908,0.02667,119280.0,119270.0,0.4809616]
[1759419484100,0.11397748,119280.0,119270.0,0.4809616]
[1759419484403,0.03019288,119280.0,119270.0,0.4809616]
[1759419484594,0.01661288,119280.0,119270.0,0.4809616]
[1759419485305,0.10039758,119280.0,119270.0,0.4809616]
[1759419485701,0.11397758,119280.0,119270.0,0.4809616]
[1759419485901,0.0837917,119270.0,119260.0,0.4576942]
[1759419486107,0.10642201,119270.0,119260.0,0.4809642]
[1759419486706,0.10642201,119270.0,119260.0,0.0837942]
[1759419487003,0.03625,119260.0,119250.0,0.48116084]
[1759419487198,0.02267,119260.0,119250.0,0.48116084]
[1759419487403,0.02267,119270.0,119260.0,0.1201688]
[1759419487703,0.1200405,119280.0,119270.0,0.1201615]
[1759419488103,0.1200405,119280.0,119250.0,0.03655864]
[1759419488104,0.0837985,119260.0,119250.0,0.03655864]
[1759419488296,0.1200485,119260.0,119250.0,0.03655864]
[1759419488502,0.1064685,119260.0,119250.0,0.12036424]
[1759419488902,0.1064685,119260.0,119250.0,0.12736424]
[1759419489108,0.1064685,119260.0,119250.0,0.13300681]
[1759419489708,0.1200485,119260.0,119250.0,0.13300681]
[1759419489908,0.1200485,119260.0,119250.0,0.1200756]
[1759419490108,0.12011714,119260.0,119250.0,0.1200756]
[1759419490611,0.02273864,119260.0,119250.0,0.1331756]
[1759419491003,0.10653714,119260.0,119250.0,0.1331756]
[1759419491207,0.47446541,119260.0,119250.0,0.03627]
[1759419491414,1.23526541,119260.0,119250.0,0.013]
[1759419491803,2.00086541,119260.0,119250.0,0.1200753]
[1759419492008,0.87221714,119260.0,119250.0,0.1331753]
[1759419492601,0.10653714,119260.0,119250.0,0.1331753]
[1759419492804,0.10653714,119260.0,119250.0,0.19301702]
[1759419494014,6.864e-05,119260.0,119250.0,0.55381702]
[1759419494211,0.02267,119270.0,119260.0,0.1201684]
[1759419494506,0.106457,119280.0,119270.0,0.1201614]
[1759419494706,0.106457,119280.0,119270.0,0.4809614]
[1759419495204,0.106457,119280.0,119270.0,0.1201614]
[1759419495410,0.106457,119280.0,119270.0,0.4809614]
[1759419495607,0.02267,119280.0,119270.0,0.4809614]
[1759419495808,0.4581608,119290.0,119280.0,0.1201545]
[1759419495809,0.8856708,119290.0,119280.0,0.1201545]
[1759419496004,0.8856708,119290.0,119280.0,0.4809545]
[1759419496307,0.8856708,119290.0,119280.0,0.02327]
[1759419496511,0.0837915,119270.0,119260.0,0.15675507]
[1759419496705,0.0837915,119270.0,119260.0,0.18144478]
[1759419496706,0.46076902,119270.0,119260.0,0.18144478]
[1759419496901,0.82156902,119270.0,119260.0,0.1070638]
[1759419497413,1.58720902,119270.0,119260.0,0.1070638]
[1759419498108,1.58720902,119270.0,119260.0,0.16693762]
[1759419498412,1.58720902,119270.0,119260.0,0.14367212]
[1759419498713,0.02267,119270.0,119260.0,0.18304212]
[1759419498908,0.8493112,119270.0,119260.0,0.18304212]
[1759419499115,0.0837912,119270.0,119260.0,0.1231683]
[1759419499306,0.1064591,119280.0,119270.0,0.1070615]
[1759419499612,0.1064591,119280.0,119270.0,0.54083883]
[1759419500405,0.77906,119290.0,119280.0,0.1070544]
[1759419500406,0.8855521,119290.0,119280.0,0.1070544]
[1759419500611,0.1064474,119290.0,119280.0,0.54084704]
[1759419500812,0.8719674,119290.0,119280.0,0.54084704]
[1759419501015,0.8719674,119290.0,119280.0,0.09626264]
[1759419501210,0.8855474,119290.0,119280.0,0.09626264]
[1759419501410,0.8855474,119290.0,119280.0,0.08316264]
[1759419501613,0.8855474,119290.0,119280.0,0.16694704]
[1759419502116,0.8885474,119290.0,119280.0,0.16694704]
[1759419502310,0.8915474,119290.0,119280.0,0.16694704]
[1759419502712,1.24589567,119290.0,119280.0,0.16694704]
[1759419503719,1.24589567,119290.0,119280.0,0.52774704]
[1759419503906,1.24577567,119290.0,119280.0,0.52774704]
[1759419504112,0.10238972,119290.0,119280.0,0.54084704]
[1759419504311,0.86758972,119290.0,119280.0,0.54084704]
[1759419504718,1.22193799,119290.0,119280.0,0.54084704]
[1759419505113,1.23480799,119290.0,119280.0,0.44396264]
[1759419505313,1.23480799,119290.0,119280.0,0.50447684]
[1759419505714,1.23480799,119290.0,119280.0,0.52693684]
[1759419506320,1.23480799,119290.0,119280.0,0.42069264]
[1759419506514,1.23480799,119290.0,119280.0,0.05989264]
[1759419506515,1.99560799,119290.0,119280.0,0.05989264]
[1759419506821,0.86960799,119290.0,119280.0,0.05989264]
[1759419507019,1.63452799,119290.0,119280.0,0.05989264]
[1759419507320,0.86746972,119290.0,119280.0,0.17880684]
[1759419507719,0.10238972,119290.0,119280.0,0.17880684]
[1759419507922,0.86746972,119290.0,119280.0,0.17880684]
[1759419508623,0.01861262,119290.0,119280.0,0.53960684]